Cogmind - Beta 14 @@@ ROGUE MODE // 2024.11.23 @ 14:42:38 Player: WazdakkaGutsmek Result: Destroyed by WI-BND(R) with Subdweller Laser Performance ------------- Evolutions (0) 0 Regions Visited (2) 400 Robots Destroyed (23) 115 Value Destroyed (737) 737 Prototype IDs (1) 20 Alien Tech Used (0) 0 Bonus (0) 0 TOTAL SCORE: 1272 Bonus ------- None Cogmind --------- Core Integrity 0/250 Matter 169/300 Energy 51/100 System Corruption 0% Temperature Cool (6) Movement Core (150) Ox2 Location -10/Subcaves Parts ------- > --- POWER (1+1) ------ (None) > --- PROPULSION (2) --- (None) > --- UTILITY (2) ------ (None) > --- WEAPON (2) ------- Powered Cannon > --- INVENTORY (5) ---- EM Pulse Gun Peak State ------------ > --- POWER ------------ (None) > --- PROPULSION ------- Light Treads > --- UTILITY ---------- Light Armor Plating Light Armor Plating > --- WEAPON ----------- Powered Cannon > --- INVENTORY -------- Light Ion Engine EM Pulse Gun [Rating: 17] Favorites ----------- Power Ion Engine Engine Ion Engine Propulsion Light Treads Treads Light Treads Leg Aluminum Leg Utility Light Armor Plating Storage Large Storage Unit Protection Light Armor Plating Weapon Grenade Launcher Energy Gun EM Pulse Gun Energy Cannon Powered Cannon Ballistic Gun Assault Rifle Ballistic Cannon Battle Cannon Launcher Grenade Launcher Build | -11 -10 -10 ------- Run | Yrd Mat Sub Slots Evolved . | . . . Power . | . . . Propulsion . | . . . Utility . | . . . Weapon . | . . . Parts Attached 25 | . 7 18 Power 1 | . . 1 Engine 1 | . . 1 Core . | . . . Reactor . | . . . Propulsion 4 | . 2 2 Treads 4 | . 2 2 Leg . | . . . Wheel . | . . . Hover . | . . . Flight . | . . . Utility 7 | . 3 4 Device . | . . . Storage 1 | . 1 . Processor . | . . . Hackware . | . . . Protection 6 | . 2 4 Artifact . | . . . Weapon 13 | . 2 11 Energy Gun 2 | . . 2 Energy Cannon 1 | . . 1 Ballistic Gun 4 | . 1 3 Ballistic Cannon 1 | . . 1 Launcher 5 | . 1 4 Special Weapon . | . . . Impact Weapon . | . . . Slashing Weapon . | . . . Piercing Weapon . | . . . Special Melee Weapon . | . . . Unidentified Prototypes 1 | . . 1 Parts Lost 15 | . 1 14 Power 2 | . . 2 Propulsion 4 | . . 4 Utility 5 | . . 5 Weapon 4 | . 1 3 Highest Loss Streak 9 | . 1 9 To Critical Strikes 1 | . . 1 Average Slot Usage (%) 88 | . 97 85 Engine 9 | . 14 8 Treads 24 | . 24 24 Storage 12 | . 14 12 Protection 12 | . 12 12 Energy Gun 2 | . 8 1 Ballistic Gun 12 | . 14 12 Ballistic Cannon 3 | . . 4 Launcher 6 | . 5 6 Peak Build Rating 17 | . 8 17 Average Rating 9 | . 7 9 On Entrance 6 | 6 6 8 Naked Turns . | . . . Heaviest Build 35 | 13 33 35 Greatest Support 40 | 20 40 40 Greatest Overweight (x) 3 | . . 3 Average Overweight (x) . | . . . Largest Inventory Capacity 15 | . 15 15 Average Capacity 13 | . 13 13 Most Carried 12 | . 11 12 Average Carried 9 | . 9 9 Final Capacity 15 | 8 15 5 Final Carried 11 | 6 11 1 Class Distribution -------------------- 100% | Mutant Dominant Class ---------------- Mutant | -10/Materials Mutant | -10/Subcaves Resources | -11 -10 -10 ----------- Run | Yrd Mat Sub Matter Collected 744 | 200 137 407 Remotely . | . . . Salvage Created 782 | . 381 401 Parts 41 | . 17 24 Haulers Intercepted 2 | . 2 . Recyclers Shooed . | . . . Parts Field Recycled . | . . . Retrieved Matter . | . . . Parts Self-Destructed 17 | . . 17 Prevented 1 | . . 1 Kills | -11 -10 -10 ------- Run | Yrd Mat Sub Combat Hostiles Destroyed 20 | . 7 13 Guns 9 | . 4 5 Cannons 2 | . . 2 AOE 9 | . 3 6 Classes Destroyed 7 | . 4 3 Hauler 2 | . 2 . Watcher 1 | . 1 . Swarmer 3 | . 3 . Grunt 4 | . 4 . Sentry 1 | . . 1 Artisan 1 | . . 1 Subdweller 12 | . . 12 Best Kill Streak 3 | . 3 3 Combat Bots Only 3 | . 3 3 Max Kills in Single Turn 2 | . 2 1 Gunslinging . | . . . Exploded 2 | . 2 1 Melee . | . . . Uniques/NPCs Destroyed . | . . . Combat | -11 -10 -10 -------- Run | Yrd Mat Sub Hostile Shots Fired 98 | . 37 61 Missed 31 | . 12 19 Damage Taken 1909 | . 364 1545 Core 258 | . 39 219 Absorbed by Shields . | . . . Core Remaining (%) 100 | 100 . . Volleys Fired 87 | . 34 53 Largest 2 | . 2 2 Hottest 68 | . 60 68 Shots Fired 143 | . 63 80 Gun 98 | . 62 36 Cannon 22 | . . 22 Launcher 23 | . 1 22 Special . | . . . Kinetic 80 | . 30 50 Thermal 4 | . . 4 Explosive 22 | . 1 21 Electromagnetic 37 | . 32 5 Robot Hit Streak 15 | . 5 15 Robot Miss Streak 5 | . 5 3 Penetration Max . | . . . Secondary Targets 1 | . 1 . Max Gunslinging Chain 1 | . 1 . Shots Hit Robots 79 | . 34 45 Core Hits 43 | . 19 24 Critical Kills . | . . . Critical Parts Destroyed . | . . . Critical Strikes . | . . . Melee Attacks . | . . . Impact . | . . . Slashing . | . . . Piercing . | . . . Sneak Attacks . | . . . Combat Hostiles . | . . . Follow-up Attacks . | . . . Damage Inflicted 1927 | . 577 1350 Guns 834 | . 433 401 Cannons 292 | . . 292 Explosions 801 | . 144 657 Melee . | . . . Ramming . | . . . Kinetic 632 | . 135 497 Thermal 270 | . 58 212 Explosive 670 | . 86 584 Electromagnetic 355 | . 298 57 Impact . | . . . Slashing . | . . . Piercing . | . . . Highest Corruption . | . . . Average Corruption . | . . . Corruption Purged . | . . . Corruption Blocked . | . . . Overload Shots . | . . . Overflow Damage 30 | . 12 18 Projectiles 11 | . . 11 Explosions 19 | . 12 7 Melee . | . . . Knockbacks . | . . . Impact . | . . . Kinetic . | . . . Secondary . | . . . Self-Inflicted Damage 179 | . 61 118 Shots 6 | . 2 4 Rammed . | . . . Targets Rammed . | . . . Kicked . | . . . Crushed . | . . . Highest Temperature 223 | . 223 3 Average Temperature 75 | . 76 3 Received Heat Transfer 249 | . 126 123 Effects 2 | . 2 . Interference 2 | . 2 . Siege Activations . | . . . Robots Corrupted . | . . . Combat Hostiles . | . . . Parts Fried 4 | . 4 . Impact Corruptions . | . . . Robots Melted . | . . . Combat Hostiles . | . . . Parts Melted . | . . . Heat Transferred 100 | . 100 . Parts Sabotaged . | . . . Parts Stolen . | . . . Parts Stripped . | . . . Power Chain Reactions 2 | . 2 . Alert | -11 -10 -10 ------- Run | Yrd Mat Sub Peak Influence 137 | . 137 . Initial . | . . . Average 75 | . 75 . Maximum Alert Level . | . . . Low Security (%) 100 | . 100 . Level 1 . | . . . Level 2 . | . . . Level 3 . | . . . Level 4 . | . . . Level 5 . | . . . High Security . | . . . Max Security . | . . . Squads Dispatched . | . . . Investigation . | . . . Extermination . | . . . Reinforcement . | . . . Assault . | . . . Garrison . | . . . Intercept . | . . . Searches Triggered . | . . . Construction Impeded . | . . . Haulers Reinforced . | . . . Active Scanning Responses . | . . . Cargo Convoy Interrupts . | . . . Stealth | -11 -10 -10 --------- Run | Yrd Mat Sub Distress Signals 1 | . 1 . Communications Jammed . | . . . Distress Signals . | . . . Times Spotted 29 | . 14 15 Peak Tracking Total 5 | . 4 5 Tactical Retreats . | . . . Traps | -11 -10 -10 ------- Run | Yrd Mat Sub Traps Triggered 7 | . 1 6 Indirectly . | . . . Trap Hack Attempts . | . . . Triggered . | . . . Disarmed . | . . . Reprogrammed . | . . . Reused . | . . . Traps Extracted . | . . . Installed . | . . . Triggered . | . . . Machines | -11 -10 -10 ---------- Run | Yrd Mat Sub Machines Disabled . | . . . Max in Single Turn . | . . . Machines Repaired . | . . . Machines Dismantled . | . . . Machines Sabotaged . | . . . Overloaded Fab Kills . | . . . Hacking | -11 -10 -10 --------- Run | Yrd Mat Sub Machines Accessed 2 | . 1 1 Terminals 1 | . 1 . Fabricators . | . . . Repair Stations . | . . . Recycling Units . | . . . Scanalyzers . | . . . Garrison Access . | . . . Total Hacks 7 | . 3 4 Successful 4 | . . 4 Failed 3 | . 3 . Catastrophic . | . . . Database Lockouts . | . . . Manual 3 | . 3 . Terminals 3 | . 3 . Fabricators . | . . . Repair Stations . | . . . Recycling Units . | . . . Scanalyzers . | . . . Garrison Access . | . . . Terminal Hacks 4 | . . 4 Record 4 | . . 4 Fabricator Hacks . | . . . Repair Station Hacks . | . . . Recycling Unit Hacks . | . . . Scanalyzer . | . . . Garrison Access Hacks . | . . . Unauthorized Hacks . | . . . Terminals . | . . . Fabricators . | . . . Repair Stations . | . . . Recycling Units . | . . . Scanalyzers . | . . . Garrison Access . | . . . Data Cores Recovered . | . . . Used . | . . . Hacking Detections 1 | . 1 . Full Trace Events . | . . . Feedback Events . | . . . Feedback Blocked . | . . . Robot Schematics Acquired . | . . . Robots Built . | . . . Authchips . | . . . Time . | . . . Total Robot Build Rating . | . . . Part Schematics Acquired . | . . . Parts Built . | . . . Authchips . | . . . Time . | . . . Total Part Build Rating . | . . . Parts Repaired . | . . . Time . | . . . Parts Recycled . | . . . Recycled Matter . | . . . Retrieved Matter . | . . . Retrieved Components . | . . . Parts Scanalyzed . | . . . Part Schematics Acquired . | . . . Parts Damaged . | . . . Bothacking | -11 -10 -10 ------------ Run | Yrd Mat Sub Used RIF Installer . | . . . Robots Hacked . | . . . Non-combat . | . . . Combat . | . . . Robot Hacks Applied . | . . . Relay Couplers Released . | . . . Fabnet Peak Effective % . | . . . Robots Rewired . | . . . Allies Hacked . | . . . Hacks Repelled . | . . . Allies | -11 -10 -10 -------- Run | Yrd Mat Sub Total Allies . | . . . Largest Group . | . . . Highest-Rated Group . | . . . Highest-Rated Ally . | . . . Total Orders . | . . . Ally Attacks . | . . . Total Damage . | . . . Kills . | . . . Allies Corrupted . | . . . Allies Melted . | . . . Intel | -11 -10 -10 ------- Run | Yrd Mat Sub Robot Analysis Total . | . . . Derelict Logs Recovered 1 | . . 1 Drone Launches . | . . . Drone Recoveries . | . . . Exploration | -11 -10 -10 ------------- Run | Yrd Mat Sub Turns Passed 3521 | . 864 2657 Spaces Moved 1999 | 1 481 1517 Core 174 | . . 174 Treads 1761 | . 418 1343 Legs 64 | 1 63 . Wheels . | . . . Hover . | . . . Flight . | . . . Fastest Speed 120 | 120 120 150 Average Speed 157 | 120 154 158 Slowest Speed 200 | 120 160 200 Overloaded Moves . | . . . Propulsion Burnouts . | . . . Robots Hopped . | . . . Cave-ins Triggered . | . . . Exploration Rate (%) 55 | 2 83 80 Regions Visited 2 Branch Regions 1 Pre-discovered Areas 1 | . . 1 Known Exits Taken . | . . . Unknown Exits Taken 2 | 1 1 . Scrap Searched 6 | . . 6 Spaces Dug . | . . . Terrain Destroyed 115 | . 9 106 Melee . | . . . Projectile . | . . . AOE 115 | . 9 106 Terrain Rammed . | . . . Walls Destroyed . | . . . Machines Disabled . | . . . Actions | -11 -10 -10 --------- Run | Yrd Mat Sub Total 2217 | . 544 1673 Wait 84 | . 5 79 Move 1997 | . 480 1517 Hop . | . . . Pick Up 12 | . 11 1 Fast Attach 6 | . 1 5 Attach 12 | . 4 8 Detach . | . . . Swap 7 | . 2 5 Drop 12 | . 7 5 Fire 87 | . 34 53 Melee . | . . . Ram . | . . . Kick . | . . . Crush . | . . . Escape Stasis . | . . . Rewire . | . . . Trap . | . . . Miscellaneous . | . . . Route ------- -11/Scrapyard -10/Materials (discovered 5 exits: [*Mat x3] / [*Min] / *Sub) -10/Subcaves (discovered 3 exits: *Mat x2 / Rec) History --------- Turn | Location | Event 1 | -11/Scrapyard | Discovered new exit (range 0) 1 | -11/Scrapyard | Entered Materials 106 | -10/Materials | Discovered new exit (range 14) 273 | -10/Materials | Discovered new exit (range 9) 312 | -10/Materials | Build established: Mutant 603 | -10/Materials | Discovered new exit (range 16) 765 | -10/Materials | Discovered new exit (range 13) 810 | -10/Materials | Discovered new exit (range 11) 865 | -10/Materials | Entered Subcaves 1081 | -10/Subcaves | Discovered new exit (range 4) 1657 | -10/Subcaves | Visited Clippyterm 1662 | -10/Subcaves | Identified exit to Recycling 1662 | -10/Subcaves | Identified exit to Materials 1662 | -10/Subcaves | Learned Research machine intel 2377 | -10/Subcaves | Disturbed a concealed Subdweller 2476 | -10/Subcaves | Learned Materials terminal intel 2501 | -10/Subcaves | Shifting Twisted Machinery released Sub. Beam Cannon 2504 | -10/Subcaves | A swath of the cavern ceiling suddenly collapsed 2504 | -10/Subcaves | Shifting Twisted Machinery released Flamer 2733 | -10/Subcaves | Learned location of Zion (-6) 2733 | -10/Subcaves | Met a Zionite searching for "candidates" 2878 | -10/Subcaves | Core integrity fell below 50% 2908 | -10/Subcaves | Lost 3 parts (2n1u) 2912 | -10/Subcaves | A swath of the cavern ceiling suddenly collapsed 3209 | -10/Subcaves | A Subdweller sparked back to life 3209 | -10/Subcaves | A Subdweller sparked back to life 3209 | -10/Subcaves | A Subdweller sparked back to life 3214 | -10/Subcaves | Core integrity fell below 20% 3239 | -10/Subcaves | Found Prototype Energy Cannon 3239 | -10/Subcaves | Identified Powered Cannon 3240 | -10/Subcaves | Attached Powered Cannon, gained temporary slot: Power 3293 | -10/Subcaves | Lost 9 parts (1p2n4u2w) 3355 | -10/Subcaves | Shifting Twisted Machinery released Battle Rifle 3360 | -10/Subcaves | Shifting Twisted Machinery released Sub. Beam Cannon 3522 | -10/Subcaves | Destroyed by WI-BND(R) with Subdweller Laser Last Messages --------------- 03238_ Dropped Sub. Shrapnel Launcher. 03238_ Dropped Barrage Gun. 03239_ Acquired Prototype Energy Cannon. 03239_ Identified Powered Cannon. 03240_ Core temporarily expanded with Power slot. 03241_ Lgt. Armor Plating destroyed. 03245_ Lgt. Treads destroyed. 03245_ Lgt. Armor Plating destroyed. 03246_ Acquired Lgt. Armor Plating. 03250_ Lgt. Armor Plating destroyed. 03253_ Destroyed Sub. Optics. 03262_ Lgt. Ion Engine destroyed. 03263_ 3P-400(R) destroyed. 03283_ Acquired 37 matter. 03284_ Acquired 22 matter. Battle Rifle falls loose from the Twisted Machinery. Sub. Beam Cannon falls loose from the Twisted Machinery. Map ----- +----------------------------------------------------+ | ????# #### ##?? ? ??????????????????????????? | | ????## #?? ????????????????????????????? | | ?????# ##???????????????????????????????? | | ?????# ##????????????????????????????????? | | ????## ##?????????????????????????????????? | | ????# ### ##??????????????????????????????????? | | ????# ### ####????????????????????????????????? | | ????## ## #???????????????#?#??????????????? | | ?????# ## ##?????????????? ???????????????? | | ?????## ## #???????????### ???????????????? | | ??????## ## ##?????????? ????????????????? | | ???????# ### ##????#???? ????????????????? | | ??????## ### ##?? ????? #????????????????? | | ??????# ## ? #??? #????????????????? | | ??????# #???# ##???????????????? | | ??????# ### ##???# #???????????????? | | ??????### ##? ##????# #????????????????? | | ????????## ## ########### ##???????????????? | | ?????????## ###????# ##??????????????? | | ??????????## #??????# < #??????????????? | | ?????????### ####???# #????????????????? | | ?????????# ###### ##???????????????? | | ?????????## #?## ## ##???????????? | | ??????????## "##?# R #???????????? | | ???????????#######! ### # #???????????? | | ????######???????## @ #" ####???????????? | | ????# ######## "#"#"# ;";"###??????????????? | | ????# ## ## ########;;#??????##????????? | | ?????# ## ## """##"#####???## ##???????? | | ?????## ### #" #""###""#"##?## #???????? | | ?????## #?###"" "###"#"#"""### #???????? | | ?????# ###?##" ##??#""##"""# #???????? | | ?????# ## "##?## "####"# """"" ##???????? | | ?????## #?## ####"#### """#"#### #????????? | | ??????## ???# "#"#""""""#"""##??## ##????????? | | ???????##???## ##" "##""##"#"#"##????###?????????? | | ??????########### """""#########?????????????????? | | ?????## ## #### ""##?????????????????????????? | | ?????# # #"#??????????????????????????? | | ?????# "#??????????????????????????? | | ?????## ####### ###??????????????????????????? | | ?????# #????######???????????????????###??##### | | ????## ^##????????????????????????????## ### | | ????# ^#?????????????????????????????# ## | | ????# ^#?????????????????????????????# | | ????## #?????????????????????????????# | | ?????# ^ #?????????????????????????????# | | ?????#^ #?????????????????????????????# | | ?????## ##?????????????????????????????# | | ??????# #??????????????????????????????## | +----------------------------------------------------+ Best States ------------- Heat Dissipation 25 Energy Generation 10 Energy Capacity 250 Matter Stores 300 Matter Capacity 300 Sight Range 16 Terrain Scan Density 10 Armor Coverage 300 Evasion (%) 55 Recoil Reduction 2 Item Schematics ----------------- None Robot Schematics ------------------ None Fabricated ------------ Nothing Alien Tech Used ----------------- None Achievements -------------- None Challenges ------------ None Game ------ Seed CouplerOmegaCarapace Manual? 0 Play Time 00:17:39 Cumulative 140.3 hours Start 2024.11.23 @ 14:25:57 End 2024.11.23 @ 14:42:38 Sessions 1 Manual Loads 0 Difficulty Rogue Special Mode None Game No. 120 Rogue 101 Adventurer 16 Explorer 3 Win Type - Total 10 Types 8/0/1/1/0/0/0/0/0 Lore% 30 Gallery% 66 Achievement% 58 Wizard Run 0 Options --------- Layout 2 ASCII 0 Keyboard 0 Movement Numpad Keybinds 1 Fullscreen 1 Font 24/Terminus Map View 50x44 Zoom Use 0% Tactical HUD 1 Map Filters NONE Filters NONE Steam 1 RUN: 4226f145-6091-47a9-af34-cb5d667de135